fUSD/lending_fUSD_20240617
["ID","MTS","AMOUNT","RATE_DAILY","PERIOD"]
[329772448,1718659862040,-500.0,0.00022191,3]
[329772449,1718659862050,-943.5,0.00022191,3]
[329772450,1718659862059,-6003.43,0.00022191,3]
[329772451,1718659862070,-500.0,0.00022191,3]
[329772452,1718659862080,-1656.4,0.00022191,3]
[329772453,1718659862089,-714.58,0.00022191,3]
[329772454,1718659862099,-1088.34,0.00022191,3]
[329772455,1718659862111,-500.0,0.00022191,3]
[329772456,1718659862121,-3234.9,0.00022191,3]
[329772457,1718659862133,-3840.82,0.00022191,3]
[329772458,1718659862143,-1151.77,0.00022191,3]
[329772459,1718659862153,-563.42,0.00022191,3]
[329772460,1718659862163,-2372.34,0.00022191,3]
[329772461,1718659862173,-4734.28,0.00022191,3]
[329772462,1718659862183,-9024.98,0.00022191,3]
[329772463,1718659862194,-12675.1,0.00022191,3]
[329772464,1718659862204,-751.27,0.00022191,3]
[329772465,1718659862214,-500.0,0.00022191,3]
[329772466,1718659862224,-500.0,0.00022191,3]
[329772467,1718659862234,-500.0,0.00022191,3]
[329772468,1718659862244,-961.69,0.00022191,3]
[329772469,1718659862254,-653.0,0.00022191,3]
[329772470,1718659862264,-3815.97,0.00022191,3]
[329772471,1718659862273,-1757.46,0.00022191,3]
[329772472,1718659862284,-512.33,0.00022191,3]
[329772473,1718659862294,-514.44,0.00022191,3]
[329772474,1718659862304,-500.0,0.00022191,3]
[329772475,1718659862315,-867.11,0.00022191,3]
[329772476,1718659862324,-500.0,0.00022191,3]
[329772477,1718659862335,-808.16,0.00022191,3]
[329772478,1718659862345,-500.0,0.00022191,3]
[329772479,1718659862355,-7239.13,0.00022191,3]
[329772480,1718659862365,-3862.01,0.00022191,3]
[329772481,1718659862379,-2414.87,0.00022191,3]
[329772482,1718659862388,-654.39,0.00022191,3]
[329772483,1718659862398,-7813.63,0.00022191,3]
[329772484,1718659862408,-500.0,0.00022191,3]
[329772485,1718659862418,-4897.34,0.00022191,3]
[329772486,1718659862427,-7257.19,0.00022191,3]
[329772487,1718659862436,-867.67,0.00022191,3]
[329772488,1718659862448,-500.0,0.00022191,3]
[329772489,1718659862457,-1811.59,0.00022191,3]
[329772490,1718659862468,-918.09,0.00022191,3]
[329772491,1718659862478,-685.52,0.00022191,3]
[329772492,1718659862488,-500.0,0.00022191,3]
[329772493,1718659862497,-4039.07,0.00022191,3]
[329772494,1718659862507,-500.0,0.00022191,3]
[329772495,1718659862518,-4908.63,0.00022191,3]
[329772496,1718659862528,-886.49,0.00022191,3]
[329772497,1718659862538,-3878.53,0.00022191,3]
[329772498,1718659862548,-1399.11,0.00022191,3]
[329772499,1718659862761,-3526.27,0.00022191,3]
[329772500,1718659862772,-1724.57,0.00022191,3]
[329772501,1718659862781,-10586.16,0.00022191,3]
[329772502,1718659862791,-2051.42,0.00022191,3]
[329772503,1718659862800,-948.98,0.00022191,3]
[329772504,1718659862809,-500.0,0.00022191,3]
[329772505,1718659862819,-860.6,0.00022191,3]
[329772506,1718659862828,-544.54,0.00022191,3]
[329772507,1718659862837,-990.03,0.00022191,3]
[329772508,1718659862847,-782.5,0.00022191,3]
[329772509,1718659862856,-529.47366431,0.00022191,3]
[329772510,1718659862865,-4818.24,0.00022191,3]
[329772511,1718659862878,-666.87,0.00022191,3]
[329772512,1718659862887,-1013.86,0.00022191,3]
[329772513,1718659862896,-500.0,0.00022191,3]
[329772514,1718659862906,-14255.96,0.00022191,3]
[329772515,1718659862915,-4204.33,0.00022191,3]
[329772516,1718659862924,-500.0,0.00022191,3]
[329772517,1718659862933,-500.0,0.00022191,3]
[329772518,1718659862942,-2809.35,0.00022191,3]
[329772519,1718659862952,-500.0,0.00022191,3]
[329772520,1718659862961,-8488.95,0.00022191,3]
[329772521,1718659862971,-500.0,0.00022191,3]
[329772522,1718659862981,-516.03,0.00022191,3]
[329772523,1718659862990,-3972.26,0.00022191,3]
[329772524,1718659862999,-862.81,0.00022191,3]
[329772525,1718659863009,-859.26,0.00022191,3]
[329772526,1718659863018,-3317.44,0.00022191,3]
[329772527,1718659863027,-1639.81,0.00022191,3]
[329772528,1718659863036,-4487.66,0.00022191,3]
[329772529,1718659863045,-500.0,0.00022191,3]
[329772530,1718659863055,-19313.21,0.00022191,3]
[329772531,1718659863064,-1064.94,0.00022191,3]
[329772532,1718659863073,-1960.3,0.00022191,3]
[329772533,1718659863082,-1280.13,0.00022191,3]
[329772534,1718659863091,-500.0,0.00022191,3]
[329772535,1718659863100,-500.0,0.00022191,3]
[329772536,1718659863109,-2173.61,0.00022191,3]
[329772537,1718659863119,-1852.25,0.00022191,3]
[329772538,1718659863131,-901.0,0.00022191,3]
[329772539,1718659863140,-3318.61,0.00022191,3]
[329772540,1718659863150,-1928.14,0.00022191,3]
[329772541,1718659863159,-2351.64,0.00022191,3]
[329772542,1718659863169,-5477.08,0.00022191,3]
[329772543,1718659863178,-1454.77,0.00022191,3]
[329772544,1718659863188,-500.0,0.00022191,3]
[329772545,1718659863197,-500.0,0.00022191,3]
[329772546,1718659863207,-500.0,0.00022191,3]
[329772547,1718659863217,-784.13,0.00022191,3]
[329772548,1718659863226,-962.26,0.00022191,3]
[329772549,1718659863236,-1417.75,0.00022191,3]
[329772550,1718659863246,-881.72,0.00022191,3]
[329772551,1718659863256,-744.96,0.00022191,3]
[329772552,1718659863266,-500.0,0.00022191,3]
[329772553,1718659863276,-4177.43,0.00022191,3]
[329772554,1718659863286,-500.0,0.00022191,3]
[329772555,1718659863296,-2207.13,0.00022191,3]
[329772556,1718659863305,-1222.88,0.00022191,3]
[329772557,1718659863315,-500.0,0.00022191,3]
[329772558,1718659863325,-777.35,0.00022191,3]
[329772559,1718659863334,-500.0,0.00022191,3]
[329772560,1718659863344,-2532.42,0.00022191,3]
[329772561,1718659863354,-3307.85,0.00022191,3]
[329772562,1718659863364,-6782.82,0.00022191,3]
[329772563,1718659863375,-161.06710926,0.00022191,3]
[329772564,1718659863384,-500.0,0.00022191,3]
[329772565,1718659863394,-1291.64,0.00022191,3]
[329772566,1718659863403,-500.0,0.00022191,3]
[329772567,1718659863412,-500.0,0.00022191,3]
[329772568,1718659863422,-1855.2,0.00022191,3]
[329772569,1718659863431,-4879.58,0.00022191,3]
[329772570,1718659863440,-9243.14,0.00022191,3]
[329772571,1718659863450,-3726.86,0.00022191,3]
[329772572,1718659863459,-500.0,0.00022191,3]
[329772573,1718659863469,-549.1,0.00022191,3]
[329772574,1718659863478,-5126.78,0.00022191,3]
[329772575,1718659863488,-2173.02,0.00022191,3]
[329772576,1718659863498,-975.62,0.00022191,3]
[329772577,1718659863507,-800.1,0.00022191,3]
[329772578,1718659863516,-1993.33,0.00022191,3]
[329772579,1718659863525,-500.0,0.00022191,3]
[329772580,1718659863535,-669.92,0.00022191,3]
[329772581,1718659863544,-500.0,0.00022191,3]
[329772582,1718659863554,-6536.15,0.00022191,3]
[329772583,1718659863564,-500.0,0.00022191,3]
[329772584,1718659863582,-500.0,0.00022191,3]
[329772585,1718659863591,-1330.07,0.00022191,3]
[329772586,1718659863600,-500.0,0.00022191,3]
[329772587,1718659863609,-521.99,0.00022191,3]
[329772588,1718659863619,-500.0,0.00022191,3]
[329772589,1718659863632,-500.0,0.00022191,3]
[329772590,1718659863642,-9395.68,0.00022191,3]
[329772591,1718659863653,-4782.18,0.00022191,3]
[329772592,1718659863663,-3782.97,0.00022191,3]
[329772593,1718659863672,-2242.43,0.00022191,3]
[329772594,1718659863681,-6715.49,0.00022191,3]
[329772595,1718659863690,-1990.64,0.00022191,3]
[329772596,1718659863700,-1892.52,0.00022191,3]
[329772597,1718659863709,-500.0,0.00022191,3]
[329772598,1718659863719,-629.17,0.00022191,3]
[329772599,1718659863729,-1077.39,0.00022191,3]
[329772600,1718659863738,-861.67,0.00022191,3]
[329772601,1718659863747,-2638.13,0.00022191,3]
[329772602,1718659863756,-713.04,0.00022191,3]
[329772603,1718659863766,-11017.28,0.00022191,3]
[329772604,1718659863775,-500.0,0.00022191,3]
[329772605,1718659863784,-10005.75,0.00022191,3]
[329772606,1718659863793,-13494.78,0.00022191,3]
[329772607,1718659863803,-929.79,0.00022191,3]
[329772608,1718659863812,-500.0,0.00022191,3]
[329772609,1718659863821,-500.0,0.00022191,3]
[329772610,1718659863830,-3071.67,0.00022191,3]
[329772611,1718659863839,-500.0,0.00022191,3]
[329772612,1718659863848,-1697.5,0.00022191,3]
[329772613,1718659863857,-783.46,0.00022191,3]
[329772614,1718659863866,-500.0,0.00022191,3]
[329772615,1718659863878,-7205.62,0.00022191,3]
[329772616,1718659863887,-6303.84,0.00022191,3]
[329772617,1718659863896,-1619.54,0.00022191,3]
[329772618,1718659863906,-1304.23,0.00022191,3]
[329772619,1718659863915,-3080.0,0.00022191,3]
[329772620,1718659863924,-1608.47,0.00022191,3]
[329772621,1718659863934,-500.0,0.00022191,3]
[329772622,1718659863943,-3390.6,0.00022191,3]
[329772623,1718659863953,-1365.25,0.00022191,3]
[329772624,1718659863963,-913.84,0.00022191,3]
[329772625,1718659863972,-1318.21,0.00022191,3]
[329772626,1718659863981,-575.76,0.00022191,3]
[329772627,1718659863990,-500.0,0.00022191,3]
[329772628,1718659863999,-500.0,0.00022191,2]
[329772629,1718659864009,-500.0,0.00022191,3]
[329772630,1718659864018,-500.0,0.00022191,3]
[329772631,1718659864027,-1680.82,0.00022191,3]
[329772632,1718659864037,-2408.0,0.00022213,2]
[329772633,1718659864046,-489.437,0.00022213,2]
[329772634,1718659864056,-150.0,0.00022213,2]
[329772635,1718659864065,-712.664,0.00022213,2]
[329772636,1718659864075,-544.0,0.00022213,2]
[329772637,1718659864084,-1719.86,0.00022213,2]
[329772638,1718659864093,-5162.0,0.00022213,2]
[329772639,1718659864103,-358.0,0.00022213,2]
[329772640,1718659864112,-1270.0,0.00022213,2]
[329772641,1718659864121,-1196.0,0.00022213,2]
[329772642,1718659864131,-38118.0,0.00022213,2]
[329772643,1718659864140,-1659.0,0.00022213,2]
[329772644,1718659864149,-1107.682,0.00022213,2]
[329772645,1718659864158,-617.0,0.00022213,2]
[329772646,1718659864167,-811.0,0.00022213,2]
[329772647,1718659864176,-262.93580267,0.00022215,2]
[329772648,1718659864186,-5286.81484122,0.00022216,2]
[329772649,1718659864195,-1114.95699673,0.00022247,5]
[329772650,1718659864204,-500.0,0.00022285,2]
[329772651,1718659864214,-200.0,0.00022285,2]
[329772652,1718659864223,-154.487,0.00022294,2]
[329772653,1718659864232,-1114.95699673,0.00022329,5]
[329772654,1718659864241,-291.0,0.000224,2]
[329772655,1718659864250,-489.0,0.000224,5]
[329772656,1718659864260,-150.0,0.000224,3]
[329772657,1718659864269,-151.0,0.00022414,2]
[329772658,1718659864278,-1114.95699673,0.00022438,5]
[329772659,1718659864287,-262.93580267,0.00022464,2]
[329772660,1718659864297,-500.0,0.00022465,3]
[329772661,1718659864306,-500.0,0.00022465,3]
[329772662,1718659864315,-500.0,0.00022465,3]
[329772663,1718659864325,-500.0,0.00022465,3]
[329772664,1718659864334,-232.63328009,0.00022465,3]
[329772665,1718659864344,-500.0,0.00022465,3]
[329772666,1718659864353,-476.14762827,0.00022465,3]
[329772667,1718659864362,-500.0,0.00022465,3]
[329772668,1718659864373,-500.0,0.00022465,3]
[329772669,1718659864383,-500.0,0.00022465,3]
[329772670,1718659864392,-565.49022937,0.00022465,3]
[329772671,1718659864402,-500.0,0.00022465,3]
[329772672,1718659864411,-602.47,0.00022465,3]
[329772673,1718659864420,-500.0,0.00022465,3]
[329772674,1718659864430,-500.0,0.00022465,3]
[329772675,1718659864440,-517.47,0.00022465,3]
[329772676,1718659864449,-500.0,0.00022465,3]
[329772677,1718659864459,-218.46265354,0.00022465,3]
[329772678,1718659864468,-500.0,0.00022465,3]
[329772679,1718659864478,-500.0,0.00022465,3]
[329772680,1718659864487,-500.0,0.00022465,3]
[329772681,1718659864496,-500.0,0.00022465,3]
[329772682,1718659864505,-500.0,0.00022465,3]
[329772683,1718659864515,-500.0,0.00022465,3]
[329772684,1718659864525,-500.0,0.00022465,3]
[329772685,1718659864535,-500.0,0.00022465,3]
[329772686,1718659864544,-569.08,0.00022465,3]
[329772687,1718659864554,-500.0,0.00022465,3]
[329772688,1718659864564,-500.0,0.00022465,3]
[329772689,1718659864578,-500.0,0.00022465,3]
[329772690,1718659864587,-500.0,0.00022465,3]
[329772691,1718659864596,-500.0,0.00022465,3]
[329772692,1718659864607,-500.0,0.00022465,3]
[329772693,1718659864617,-500.0,0.00022465,3]
[329772694,1718659864628,-500.0,0.00022465,3]
[329772695,1718659864637,-598.32750639,0.00022465,3]
[329772696,1718659864648,-500.0,0.00022465,3]
[329772697,1718659864656,-500.0,0.00022465,3]
[329772698,1718659864666,-500.0,0.00022465,3]
[329772699,1718659864675,-467.26314111,0.00022465,3]
[329772700,1718659864685,-500.0,0.00022465,3]
[329772701,1718659864694,-500.0,0.00022465,3]
[329772702,1718659864703,-500.0,0.00022465,3]
[329772703,1718659864712,-500.0,0.00022465,3]
[329772704,1718659864721,-1039.76,0.00022465,3]
[329772705,1718659864731,-870.56,0.00022465,3]
[329772706,1718659864740,-500.0,0.00022465,3]
[329772707,1718659864749,-500.0,0.00022465,3]
[329772708,1718659864758,-500.0,0.00022465,3]
[329772709,1718659864767,-500.0,0.00022465,3]
[329772710,1718659864776,-500.0,0.00022465,3]
[329772711,1718659864786,-500.0,0.00022465,3]
[329772712,1718659864795,-500.0,0.00022465,3]
[329772713,1718659864804,-500.0,0.00022465,3]
[329772714,1718659864813,-500.0,0.00022465,3]
[329772715,1718659864822,-500.0,0.00022465,3]
[329772716,1718659864831,-500.0,0.00022465,3]
[329772717,1718659864840,-500.0,0.00022465,3]
[329772718,1718659864850,-500.0,0.00022465,3]
[329772719,1718659864859,-500.0,0.00022465,3]
[329772720,1718659864868,-561.27,0.00022465,3]
[329772721,1718659864879,-500.0,0.00022465,3]
[329772722,1718659864888,-500.0,0.00022465,3]
[329772723,1718659864898,-500.0,0.00022465,3]
[329772724,1718659864907,-500.0,0.00022465,3]
[329772725,1718659864916,-500.0,0.00022465,3]
[329772726,1718659864926,-500.0,0.00022465,3]
[329772727,1718659864935,-500.0,0.00022465,3]
[329772728,1718659864944,-500.0,0.00022465,3]
[329772729,1718659864954,-500.0,0.00022465,3]
[329772730,1718659864964,-500.0,0.00022465,3]
[329772731,1718659864973,-500.0,0.00022465,3]
[329772732,1718659864983,-500.0,0.00022465,3]
[329772733,1718659864993,-500.0,0.00022465,3]
[329772734,1718659865065,-500.0,0.00022465,3]
[329772735,1718659865075,-558.69,0.00022465,3]
[329772736,1718659865084,-500.0,0.00022465,3]
[329772737,1718659865093,-654.73,0.00022465,3]
[329772738,1718659865102,-579.88,0.00022465,3]
[329772739,1718659865111,-553.07,0.00022465,3]
[329772740,1718659865120,-500.0,0.00022465,3]
[329772741,1718659865131,-500.0,0.00022465,3]
[329772742,1718659865140,-500.0,0.00022465,3]
[329772743,1718659865149,-507.9,0.00022465,3]
[329772744,1718659865157,-500.0,0.00022465,3]
[329772745,1718659865166,-500.0,0.00022465,3]
[329772746,1718659865175,-814.99,0.00022465,3]
[329772747,1718659865184,-845.5,0.00022465,3]
[329772748,1718659865193,-960.7,0.00022465,3]
[329772749,1718659865202,-500.0,0.00022465,3]
[329772750,1718659865211,-1354.45,0.00022465,3]
[329772751,1718659865220,-500.0,0.00022465,3]
[329772752,1718659865229,-500.0,0.00022465,3]
[329772753,1718659865238,-673.35,0.00022465,3]
[329772754,1718659865247,-511.31,0.00022465,3]
[329772755,1718659865256,-500.0,0.00022465,3]
[329772756,1718659865265,-1169.87,0.00022465,3]
[329772757,1718659865274,-500.0,0.00022465,3]
[329772758,1718659865283,-675.91,0.00022465,3]
[329772759,1718659865292,-545.87,0.00022465,3]
[329772760,1718659865302,-1143.5,0.00022465,3]
[329772761,1718659865310,-530.66,0.00022465,3]
[329772762,1718659865319,-687.4,0.00022465,3]
[329772763,1718659865329,-500.0,0.00022465,3]
[329772764,1718659865338,-500.0,0.00022465,3]
[329772765,1718659865347,-500.0,0.00022465,3]
[329772766,1718659865356,-500.0,0.00022465,3]
[329772767,1718659865365,-500.0,0.00022465,3]
[329772768,1718659865376,-1611.86,0.00022465,3]
[329772769,1718659865385,-1085.89,0.00022465,3]
[329772770,1718659865395,-500.0,0.00022465,3]
[329772771,1718659865403,-500.0,0.00022465,3]
[329772772,1718659865412,-500.0,0.00022465,3]
[329772773,1718659865421,-936.49,0.00022465,3]
[329772774,1718659865431,-500.0,0.00022465,3]
[329772775,1718659865439,-500.0,0.00022465,3]
[329772776,1718659865448,-500.0,0.00022465,3]
[329772777,1718659865458,-228.23,0.00022465,3]
[329772778,1718659865468,-500.0,0.00022465,2]
[329772779,1718659865476,-500.0,0.00022465,3]
[329772780,1718659865486,-500.0,0.00022465,3]
[329772781,1718659865495,-500.0,0.00022465,3]
[329772782,1718659865504,-598.38,0.00022465,3]
[329772783,1718659865513,-500.0,0.00022465,3]
[329772784,1718659865523,-500.0,0.00022465,3]
[329772785,1718659865532,-500.0,0.00022465,3]
[329772786,1718659865541,-500.0,0.00022465,3]
[329772787,1718659865551,-776.47,0.00022465,3]
[329772788,1718659865560,-500.0,0.00022465,3]
[329772789,1718659865572,-500.0,0.00022465,3]
[329772790,1718659865582,-500.0,0.00022465,3]
[329772791,1718659865592,-706.57,0.00022465,3]
[329772792,1718659865601,-617.86,0.00022465,3]
[329772793,1718659865611,-1655.71,0.00022465,3]
[329772794,1718659865620,-588.62592343,0.00022465,3]
[329772795,1718659865631,-1339.62,0.00022465,3]
[329772796,1718659865641,-721.63,0.00022465,3]
[329772797,1718659865650,-500.0,0.00022465,3]
[329772798,1718659865660,-500.0,0.00022465,3]
[329772799,1718659865669,-510.74,0.00022465,3]
[329772800,1718659865679,-596.3,0.00022465,3]
[329772801,1718659865688,-500.0,0.00022465,3]
[329772802,1718659865697,-500.0,0.00022465,3]
[329772803,1718659865706,-518.09,0.00022465,3]
[329772804,1718659865715,-500.0,0.00022465,3]
[329772805,1718659865725,-1038.56,0.00022465,3]
[329772806,1718659865734,-500.0,0.00022465,3]
[329772807,1718659865743,-500.0,0.00022465,3]
[329772808,1718659865752,-500.0,0.00022465,3]
[329772809,1718659865761,-837.5,0.00022465,3]
[329772810,1718659865771,-500.0,0.00022465,3]
[329772811,1718659865780,-500.0,0.00022465,3]
[329772812,1718659865789,-500.0,0.00022465,3]
[329772813,1718659865798,-500.0,0.00022465,3]
[329772814,1718659865808,-500.0,0.00022465,3]
[329772815,1718659865816,-500.0,0.00022465,3]
[329772816,1718659865825,-500.0,0.00022465,3]
[329772817,1718659865834,-794.48,0.00022465,3]
[329772818,1718659865843,-797.61,0.00022465,3]
[329772819,1718659865853,-500.0,0.00022465,3]
[329772820,1718659865862,-500.0,0.00022465,3]
[329772821,1718659865871,-1495.56,0.00022465,3]
[329772822,1718659865882,-500.0,0.00022465,3]
[329772823,1718659865890,-829.1,0.00022465,3]
[329772824,1718659865900,-639.11,0.00022465,3]
[329772825,1718659865909,-500.0,0.00022465,3]
[329772826,1718659865919,-631.93,0.00022465,3]
[329772827,1718659865929,-526.38,0.00022465,3]
[329772828,1718659865939,-500.0,0.00022465,3]
[329772829,1718659865948,-500.0,0.00022465,3]
[329772830,1718659865957,-500.0,0.00022465,3]
[329772831,1718659865966,-500.0,0.00022465,3]
[329772832,1718659865975,-1216.14,0.00022465,3]
[329772833,1718659865984,-500.0,0.00022465,3]
[329772834,1718659865993,-675.33,0.00022465,3]
[329772835,1718659866003,-500.0,0.00022465,3]
[329772836,1718659866012,-500.0,0.00022465,3]
[329772837,1718659866021,-500.0,0.00022465,3]
[329772838,1718659866031,-899.28,0.00022465,3]
[329772839,1718659866040,-1211.55,0.00022465,3]
[329772840,1718659866049,-509.36,0.00022465,3]
[329772841,1718659866058,-558.22,0.00022465,3]
[329772842,1718659866067,-500.0,0.00022465,3]
[329772843,1718659866076,-835.63,0.00022465,3]
[329772844,1718659866086,-500.0,0.00022465,3]
[329772845,1718659866096,-899.66,0.00022465,3]
[329772846,1718659866105,-500.0,0.00022465,3]
[329772847,1718659866114,-722.01,0.00022465,3]
[329772848,1718659866125,-630.3,0.00022465,3]
[329772849,1718659866134,-635.56,0.00022465,3]
[329772850,1718659866144,-960.01,0.00022465,3]
[329772851,1718659866152,-500.0,0.00022465,3]
[329772852,1718659866161,-1535.49,0.00022465,3]
[329772853,1718659866171,-500.0,0.00022465,3]
[329772854,1718659866180,-500.0,0.00022465,3]
[329772855,1718659866190,-728.42,0.00022465,3]
[329772856,1718659866199,-593.09,0.00022465,3]
[329772857,1718659866208,-500.0,0.00022465,3]
[329772858,1718659866218,-849.15,0.00022465,3]
[329772859,1718659866228,-838.15,0.00022465,3]
[329772860,1718659866238,-500.0,0.00022465,3]
[329772861,1718659866247,-500.0,0.00022465,3]
[329772862,1718659866257,-500.0,0.00022465,3]
[329772863,1718659866265,-500.0,0.00022465,3]
[329772864,1718659866274,-500.0,0.00022465,3]
[329772865,1718659866284,-500.0,0.00022465,3]
[329772866,1718659866293,-731.67,0.00022465,3]
[329772867,1718659866302,-1207.04,0.00022465,3]
[329772868,1718659866312,-500.0,0.00022465,3]
[329772869,1718659866321,-842.15,0.00022465,3]
[329772870,1718659866330,-500.0,0.00022465,3]
[329772871,1718659866339,-1490.64,0.00022465,3]
[329772872,1718659866349,-500.0,0.00022465,3]
[329772873,1718659866358,-559.89,0.00022465,3]
[329772874,1718659866367,-500.0,0.00022465,3]
[329772875,1718659866378,-557.87,0.00022465,3]
[329772876,1718659866387,-500.0,0.00022465,3]
[329772877,1718659866396,-500.0,0.00022465,3]
[329772878,1718659866406,-500.0,0.00022465,3]
[329772879,1718659866415,-806.01,0.00022465,3]
[329772880,1718659866425,-622.27,0.00022465,3]
[329772881,1718659866435,-500.0,0.00022465,3]
[329772882,1718659866444,-520.61,0.00022465,3]
[329772883,1718659866454,-500.0,0.00022465,3]
[329772884,1718659866464,-817.55,0.00022465,3]
[329772885,1718659866473,-580.98,0.00022465,3]
[329772886,1718659866483,-500.0,0.00022465,3]
[329772887,1718659866493,-500.0,0.00022465,3]
[329772888,1718659866503,-500.0,0.00022465,3]
[329772889,1718659866512,-1505.56,0.00022465,3]
[329772890,1718659866521,-500.0,0.00022465,3]
[329772891,1718659866531,-625.25,0.00022465,3]
[329772892,1718659866540,-1273.59,0.00022465,3]
[329772893,1718659866550,-500.0,0.00022465,3]
[329772894,1718659866559,-500.0,0.00022465,3]
[329772895,1718659866572,-500.0,0.00022465,3]
[329772896,1718659866584,-751.89,0.00022465,3]
[329772897,1718659866594,-500.0,0.00022465,3]
[329772898,1718659866603,-500.0,0.00022465,3]
[329772899,1718659866614,-500.0,0.00022465,3]
[329772900,1718659866624,-562.6,0.00022465,3]
[329772901,1718659866635,-500.0,0.00022465,3]
[329772902,1718659866644,-500.0,0.00022465,3]
[329772903,1718659866657,-940.0,0.00022465,3]
[329772904,1718659866667,-858.79,0.00022465,3]
[329772905,1718659866676,-607.3,0.00022465,3]
[329772906,1718659866686,-500.0,0.00022465,3]
[329772907,1718659866695,-500.0,0.00022465,3]
[329772908,1718659866704,-500.0,0.00022465,3]
[329772909,1718659866713,-555.64,0.00022465,3]
[329772910,1718659866722,-500.0,0.00022465,3]
[329772911,1718659866731,-500.0,0.00022465,3]
[329772912,1718659866741,-909.16,0.00022465,3]
[329772913,1718659866750,-500.0,0.00022465,3]
[329772914,1718659866760,-500.0,0.00022465,3]
[329772915,1718659866769,-500.0,0.00022465,3]
[329772916,1718659866779,-511.35,0.00022465,3]
[329772917,1718659866788,-500.0,0.00022465,3]
[329772918,1718659866798,-500.0,0.00022465,3]
[329772919,1718659866807,-521.59,0.00022465,3]
[329772920,1718659866817,-500.0,0.00022465,3]
[329772921,1718659866826,-644.6,0.00022465,3]
[329772922,1718659866836,-500.0,0.00022465,3]
[329772923,1718659866846,-500.0,0.00022465,3]
[329772924,1718659866855,-500.0,0.00022465,3]
[329772925,1718659866865,-938.6,0.00022465,3]
[329772926,1718659866874,-500.0,0.00022465,3]
[329772927,1718659866884,-1776.44,0.00022465,3]
[329772928,1718659866893,-500.0,0.00022465,3]
[329772929,1718659866902,-500.0,0.00022465,3]
[329772930,1718659866912,-564.08,0.00022465,3]
[329772931,1718659866921,-1327.33,0.00022465,3]
[329772932,1718659866931,-508.36,0.00022465,3]
[329772933,1718659866940,-500.0,0.00022465,3]
[329772934,1718659866951,-500.0,0.00022465,3]
[329772935,1718659866960,-500.0,0.00022465,3]
[329772936,1718659866970,-500.0,0.00022465,3]
[329772937,1718659866979,-500.0,0.00022465,3]
[329772938,1718659866989,-935.93,0.00022465,3]
[329772939,1718659866998,-1182.23,0.00022465,3]
[329772940,1718659867007,-500.0,0.00022465,3]
[329772941,1718659867017,-1176.87,0.00022465,3]
[329772942,1718659867026,-500.0,0.00022465,3]
[329772943,1718659867039,-500.0,0.00022465,3]
[329772944,1718659867048,-500.0,0.00022465,3]
[329772945,1718659867058,-1862.89,0.00022465,3]
[329772946,1718659867068,-1496.28,0.00022465,3]
[329772947,1718659867077,-1446.6,0.00022465,3]